bitfinex-derivatives/quotes_SOLF0:USTF0_20240820
["timestamp","ask_amount","ask_price","bid_price","bid_amount"]
[1724114224507,0.04636716,146.78,146.72,26.16]
[1724114224897,2.383,146.82,146.78,0.05147321]
[1724114225498,2.383,146.82,146.72,26.16]
[1724114225706,26.16,146.83,146.72,26.16]
[1724114226003,0.04457325,146.81,146.79,0.05048181]
[1724114226198,0.04457325,146.81,146.72,26.16]
[1724114226699,26.16,146.83,146.79,0.04868205]
[1724114227002,26.16,146.81,146.66,7.8917]
[1724114227203,0.05153128,146.78,146.73,2.3844]
[1724114227402,0.05153128,146.78,146.68,26.16]
[1724114227403,26.16,146.79,146.68,26.16]
[1724114227910,0.04798684,146.77,146.74,0.04819153]
[1724114228307,7.9479,146.87,146.74,0.04819153]
[1724114228613,26.16,146.84,146.74,2.6131]
[1724114228812,28.5428,146.84,146.78,2.3835]
[1724114229013,28.5428,146.84,146.74,2.6131]
[1724114229207,28.5428,146.84,146.79,2.3833]
[1724114229411,26.16,146.84,146.74,2.6131]
[1724114229609,26.16,146.8,146.69,26.16]
[1724114229807,26.16,146.8,146.67,2.6131]
[1724114230008,26.16,146.79,146.67,2.6131]
[1724114230611,11.3467438,146.87,146.68,26.16]
[1724114230811,26.16,146.81,146.68,26.16]
[1724114231007,2.3834,146.8,146.76,2.384]
[1724114231515,0.04390458,146.76,146.73,0.04954097]
[1724114231911,26.16,146.78,146.67,2.6061]
[1724114232118,0.05004644,146.76,146.73,0.04776464]
[1724114232618,0.05004644,146.76,146.75,2.3841]
[1724114232820,0.05004644,146.76,146.73,0.04776464]
[1724114233515,26.21004644,146.76,146.67,2.6061]
[1724114233710,26.16,146.74,146.63,2.6911]
[1724114233911,6.07754839,146.78,146.63,2.6911]
[1724114233912,2.385,146.7,146.63,2.6911]
[1724114234310,2.3856,146.66,146.57,2.663]
[1724114234516,26.16,146.67,146.57,6.0855897]
[1724114234821,2.3857,146.66,146.57,2.663]
[1724114235015,0.04334685,146.63,146.6,0.04776748]
[1724114235319,0.04334685,146.63,146.62,2.3862]
[1724114235714,26.16,146.71,146.6,26.20776748]
[1724114235914,26.16,146.71,146.61,2.6911]
[1724114236114,5.2046,146.77,146.67,26.16]
[1724114236414,26.16,146.81,146.69,26.16]
[1724114237008,26.16,146.81,146.76,2.384]
[1724114237216,26.16,146.84,146.71,26.16]
[1724114237410,8.0158,146.86,146.74,26.16]
[1724114237618,2.3827,146.84,146.74,26.16]
[1724114237815,2.3827,146.84,146.7,2.5689]
[1724114237816,0.04429191,146.76,146.7,2.5689]
[1724114238119,0.04429191,146.76,146.74,0.0469462]
[1724114238625,8.0158,146.86,146.75,2.3841]
[1724114238626,2.3832,146.81,146.75,2.3841]
[1724114238824,0.05106771,146.76,146.75,2.3841]
[1724114239419,2.383,146.82,146.76,2.3839]
[1724114239615,31.38,146.85,146.76,2.3839]
[1724114239823,31.38,146.85,146.74,0.04520555]
[1724114240015,0.04637089,146.77,146.74,0.04520555]
[1724114240215,0.04637089,146.77,146.73,31.38]
[1724114240416,2.3833,146.8,146.73,31.38]
[1724114240617,0.04437613,146.76,146.74,0.04572294]
[1724114241020,0.04437613,146.76,146.75,2.384]
[1724114241217,0.05221113,146.76,146.74,0.04587507]
[1724114243520,2.3841,146.75,146.74,0.04587507]
[1724114244023,0.05221113,146.76,146.68,2.3853]
[1724114244224,2.7399,146.75,146.66,2.6617]
[1724114244417,2.7399,146.75,146.63,2.5505]
[1724114244614,2.7399,146.75,146.63,33.9305]
[1724114244819,2.7399,146.75,146.66,31.38]
[1724114245215,0.04475186,146.72,146.71,2.3847]
[1724114245423,0.04475186,146.72,146.69,0.04645371]
[1724114245619,0.04475186,146.72,146.7,2.3848]
[1724114245827,0.04475186,146.72,146.69,0.04645371]
[1724114249223,2.3848,146.71,146.69,0.04645371]
[1724114249425,0.04475186,146.72,146.69,0.04645371]
[1724114250826,0.04475186,146.72,146.69,2.43145371]
[1724114251032,0.04475186,146.72,146.69,0.04645371]
[1724114252122,2.3849,146.71,146.69,0.04645371]
[1724114252329,0.04475186,146.72,146.69,0.04645371]
[1724114252724,2.3849,146.71,146.69,0.04645371]
[1724114252920,0.04475186,146.72,146.69,0.04645371]
[1724114253326,2.42935186,146.72,146.69,0.04645371]
[1724114253527,0.04475186,146.72,146.69,0.04645371]
[1724114253923,2.3849,146.71,146.69,0.04645371]
[1724114254326,0.04475186,146.72,146.69,0.04645371]
[1724114255822,0.04475186,146.72,146.71,2.3848]
[1724114257330,0.04475186,146.72,146.69,0.04645371]
[1724114257926,0.04475186,146.72,146.71,2.3848]
[1724114258127,0.04475186,146.72,146.69,0.04645371]
[1724114258334,0.04475186,146.72,146.69,2.43145371]
[1724114258636,2.42945186,146.72,146.69,0.04645371]
[1724114259631,0.04475186,146.72,146.69,2.43145371]
[1724114260138,0.04475186,146.72,146.69,0.04645371]
[1724114262338,2.4825,146.79,146.7,26.15]
[1724114262729,2.4825,146.79,146.72,26.15]
[1724114263436,0.05175194,146.77,146.74,0.04657822]
[1724114265032,2.3841,146.76,146.74,0.04657822]
[1724114265228,0.05175194,146.77,146.74,0.04657822]
[1724114265534,2.3841,146.76,146.74,0.04657822]
[1724114265730,0.05175194,146.77,146.74,0.04657822]
[1724114267239,26.20175194,146.77,146.64,26.15]
[1724114267437,26.15,146.77,146.64,26.15]
[1724114267638,2.3846,146.73,146.69,2.3851]
[1724114267947,26.15,146.77,146.67,26.15]
[1724114268340,0.05130882,146.73,146.71,0.05095975]
[1724114268841,2.43580882,146.73,146.71,0.05095975]
[1724114269440,0.05130882,146.73,146.71,0.05095975]
[1724114270143,0.05130882,146.73,146.63,11.09192727]
[1724114270144,0.05130882,146.73,146.63,7.6842]
[1724114270332,5.3232,146.74,146.63,7.6842]
[1724114270736,2.3849,146.71,146.67,2.3854]
[1724114271043,5.3232,146.74,146.64,26.15]
[1724114271242,0.04495715,146.7,146.68,2.42901516]
[1724114272038,0.04495715,146.7,146.68,0.04371516]
[1724114272347,0.04495715,146.7,146.52,9.5517]
[1724114272640,26.19495715,146.7,146.58,26.15]
[1724114272838,26.15,146.7,146.58,26.15]
[1724114273233,26.15,146.68,146.59,2.3867]
[1724114273438,26.15,146.68,146.57,7.9447]
[1724114273643,5.2221,146.67,146.57,7.9447]
[1724114273838,2.386,146.64,146.6,2.3865]
[1724114274040,26.15,146.66,146.57,2.6617]
[1724114274238,26.15,146.66,146.54,26.15]
[1724114274550,0.05098047,146.65,146.62,0.05110151]
[1724114275042,5.2221,146.67,146.58,26.15]
[1724114275232,2.627,146.67,146.58,26.15]
[1724114275438,2.627,146.67,146.65,2.3857]
[1724114275639,0.0465034,146.64,146.62,0.04739457]
[1724114275946,2.608,146.71,146.63,26.19609758]
[1724114276440,4.9928,146.71,146.67,2.3854]
[1724114276938,2.608,146.71,146.63,26.15]
[1724114277140,0.05062906,146.7,146.68,0.04939508]
[1724114277344,0.04757459,146.7,146.68,0.04463643]
[1724114277943,0.04757459,146.7,146.69,2.385]
[1724114278237,0.04757459,146.7,146.68,0.04463643]
[1724114279441,0.04757459,146.7,146.61,5.1754]
[1724114279742,31.5097,146.71,146.61,5.1754]
[1724114279940,2.385,146.7,146.66,2.3855]
[1724114280245,5.3597,146.71,146.63,26.15]
[1724114280444,0.05254327,146.68,146.66,0.04659314]
[1724114280640,26.15,146.75,146.66,0.04659314]
[1724114280849,26.15,146.75,146.65,26.15]
[1724114281450,2.3843,146.74,146.7,2.3848]
[1724114281747,0.04512561,146.73,146.71,0.05219228]
[1724114282443,0.04512561,146.73,146.71,2.43699228]
[1724114282645,46.63512561,146.73,146.54,3.47703251]
[1724114282848,26.15,146.7,146.59,26.15]
[1724114283748,0.04669019,146.66,146.63,0.04506878]
[1724114284144,0.04669019,146.66,146.65,2.3858]
[1724114284943,0.04669019,146.66,146.63,0.04506878]
[1724114285453,2.3859,146.65,146.63,0.04506878]
[1724114287549,0.04669019,146.66,146.63,0.04506878]
[1724114288457,0.04669019,146.66,146.64,2.3858]
[1724114288648,0.04669019,146.66,146.63,0.04506878]
[1724114289850,26.15,146.65,146.42,11.9471]
[1724114290053,5.3487,146.64,146.52,38.63928638]
[1724114290254,2.3864,146.62,146.58,2.3868]
[1724114290755,0.05233306,146.61,146.59,2.43476508]
[1724114290955,0.05233306,146.61,146.59,0.04560586]
[1724114291358,2.43883306,146.61,146.59,0.04560586]
[1724114291558,0.05233306,146.61,146.59,0.04560586]
[1724114291962,26.15,146.6,146.53,7.28318638]
[1724114292161,26.15,146.58,146.47,31.1444]
[1724114292354,26.15,146.58,146.51,2.3879]
[1724114292355,2.3873,146.56,146.51,2.3879]
[1724114292551,2.3873,146.56,146.48,7.29216163]
[1724114293054,0.04747667,146.53,146.52,2.3879]
[1724114293253,0.04747667,146.53,146.51,0.04777665]
[1724114293658,0.04747667,146.53,146.51,2.43567665]
[1724114293854,0.04747667,146.53,146.51,0.04777665]
[1724114294253,26.15,146.6,146.5,26.15]
[1724114294459,2.3869,146.59,146.5,26.15]
[1724114294659,28.6681,146.62,146.55,2.3874]
[1724114294856,28.6681,146.62,146.5,26.15]
[1724114295164,28.6681,146.62,146.48,3.4015445]
[1724114295165,2.5181,146.62,146.55,0.05152784]
[1724114295361,0.04753961,146.6,146.55,0.05152784]
[1724114295753,0.04753961,146.6,146.57,2.3869]
[1724114295957,0.04753961,146.6,146.55,0.05152784]
[1724114296859,26.19753961,146.6,146.55,0.05152784]
[1724114297062,2.3872,146.57,146.55,0.05152784]
[1724114297363,26.15,146.58,146.55,0.05152784]
[1724114297864,0.04753961,146.6,146.55,0.05152784]
[1724114297865,26.19753961,146.6,146.55,0.05152784]
[1724114298364,2.3871,146.57,146.55,0.05152784]
[1724114299163,2.387,146.58,146.55,0.05152784]
[1724114299363,26.19753961,146.6,146.55,0.05152784]
[1724114299768,0.04753961,146.6,146.55,0.05152784]
[1724114301276,0.04753961,146.6,146.59,2.3867]
[1724114302082,0.04753961,146.6,146.58,2.43732335]
[1724114302378,0.04753961,146.6,146.58,0.05042335]
[1724114302578,2.43423961,146.6,146.58,0.05042335]
[1724114302772,0.04753961,146.6,146.58,0.05042335]
[1724114303983,0.04753961,146.6,146.59,2.3867]
[1724114304574,0.04753961,146.6,146.58,2.43722335]
[1724114304775,0.04753961,146.6,146.58,0.05042335]
[1724114304985,0.04753961,146.6,146.59,2.3867]
[1724114305483,0.04753961,146.6,146.58,0.05042335]
[1724114305982,2.43423961,146.6,146.58,0.05042335]
[1724114306177,0.04753961,146.6,146.58,0.05042335]
[1724114306679,2.5448,146.66,146.58,0.05042335]
[1724114306977,26.15,146.7,146.6,26.15]
[1724114307188,2.3852,146.69,146.64,2.3858]
[1724114307379,26.15,146.7,146.64,2.3858]
[1724114307576,2.3852,146.69,146.64,2.3858]
[1724114307888,0.04371031,146.68,146.65,0.04680807]
[1724114309687,2.42901031,146.68,146.65,0.04680807]
[1724114310578,2.3855,146.67,146.65,0.04680807]
[1724114310780,26.19371031,146.68,146.58,5.3823]
[1724114310781,26.15,146.68,146.58,5.3823]
[1724114311091,2.3856,146.66,146.61,2.3863]
[1724114311378,26.15,146.68,146.58,5.3823]
[1724114311779,0.04433005,146.64,146.62,0.04784684]
[1724114311974,0.04433005,146.64,146.56,7.27679786]
[1724114312180,2.3858,146.66,146.62,0.04454546]
[1724114312380,26.15,146.68,146.56,7.27679786]
[1724114312578,26.19489552,146.65,146.53,31.2472]
[1724114312779,2.492,146.64,146.54,7.27849657]
[1724114313179,2.492,146.64,146.53,31.2472]
[1724114313180,26.15,146.63,146.53,2.6197]
[1724114313379,26.15,146.63,146.49,2.4837]
[1724114313380,26.15,146.6,146.49,2.4837]
[1724114313686,0.04423592,146.56,146.53,0.04943229]
[1724114313885,0.04867955,146.56,146.53,0.04599171]
[1724114314084,0.04867955,146.56,146.55,2.3874]
[1724114318485,0.04867955,146.56,146.53,0.04599171]
[1724114318677,0.04867955,146.56,146.45,2.6715]
[1724114318678,2.59347955,146.56,146.45,2.6715]
[1724114318883,2.5448,146.56,146.45,6.03782005]
[1724114319083,5.0739,146.56,146.5,2.3881]
[1724114319378,26.15,146.55,146.44,26.15]
[1724114319686,0.04592915,146.51,146.48,0.04906967]
[1724114319883,2.5531,146.63,146.48,0.04906967]
[1724114319884,72.14736502,146.79,146.5,26.15]
[1724114320185,5.0739,146.66,146.56,26.15]
[1724114320490,26.15,146.65,146.52,28.7952]
[1724114320684,28.7812,146.65,146.52,32.26959413]
[1724114320988,0.05042048,146.6,146.57,0.04484619]
[1724114321293,0.05042048,146.6,146.57,2.43194619]
[1724114321480,0.05042048,146.6,146.57,0.04484619]
[1724114321882,0.05042048,146.6,146.59,2.3867]
[1724114322791,5.0739,146.66,146.57,0.04484619]
[1724114322792,2.5448,146.66,146.57,29.54684165]
[1724114322987,26.15,146.7,146.57,26.15]
[1724114323190,26.15,146.67,146.58,2.6587]
[1724114323991,0.04978556,146.64,146.63,2.3861]
[1724114324190,28.7238,146.7,146.63,2.3861]
[1724114324392,0.04754382,146.68,146.65,0.04323754]
[1724114325191,26.15,146.67,146.65,0.04323754]
[1724114325883,26.15,146.67,146.54,26.15]
[1724114326084,26.15,146.63,146.55,7.26888017]
[1724114326394,26.15,146.63,146.53,5.4015]
[1724114326597,26.15,146.63,146.58,2.3868]
[1724114326889,26.15,146.63,146.54,7.26978468]
[1724114327089,0.0473449,146.62,146.59,0.05099151]
[1724114327691,26.15,146.6,146.52,2.6452]
[1724114328084,28.6739449,146.62,146.52,2.6452]
[1724114328300,28.6266,146.62,146.52,2.6452]
[1724114328792,28.6266,146.62,146.56,0.04927345]
[1724114328793,0.05228371,146.58,146.56,0.04927345]
[1724114329696,2.43918371,146.58,146.56,0.04927345]
[1724114329895,0.05228371,146.58,146.56,0.04927345]
[1724114330598,0.05228371,146.58,146.57,2.3871]
[1724114330792,0.05228371,146.58,146.56,0.04927345]
[1724114330793,2.3861,146.63,146.56,0.04927345]
[1724114331101,26.15,146.65,146.56,0.04927345]
[1724114331399,26.15,146.65,146.54,31.4682]
[1724114331793,26.15,146.65,146.58,0.04448012]
[1724114331794,2.43270121,146.61,146.58,0.04448012]
[1724114332296,2.3866,146.6,146.58,0.04448012]
[1724114333101,0.04610121,146.61,146.58,0.04448012]
[1724114333400,2.3867,146.59,146.58,0.04448012]
[1724114333795,0.04610121,146.61,146.5,2.7008]
[1724114333796,26.15,146.6,146.5,2.7008]
[1724114334102,26.15,146.6,146.39,4.78]
[1724114334103,26.15,146.55,146.46,5.1821]
[1724114334405,2.388,146.52,146.48,2.3884]
[1724114334606,26.15,146.55,146.47,7.28300031]
[1724114334996,2.3877,146.54,146.49,2.3883]
[1724114335193,0.04928051,146.52,146.5,0.04399527]
[1724114335705,0.04928051,146.52,146.42,26.15]
[1724114335907,0.04928051,146.52,146.43,7.28884608]
[1724114336107,2.3884,146.5,146.45,2.3889]
[1724114336501,2.3884,146.5,146.42,26.15]
[1724114336699,2.388,146.52,146.42,26.15]
[1724114336998,0.05092264,146.47,146.45,0.05021917]
[1724114337402,2.388,146.52,146.48,2.3885]
[1724114337598,0.04650643,146.47,146.45,0.05021917]
[1724114337798,0.04650643,146.47,146.44,26.15]
[1724114338004,2.3878,146.53,146.48,2.3884]
[1724114338502,2.5689,146.54,146.48,2.3884]
[1724114338503,0.05190374,146.52,146.48,2.3884]
[1724114338693,0.05190374,146.52,146.49,0.04642769]
[1724114338891,0.05190374,146.52,146.49,2.43472769]
[1724114339092,0.05190374,146.52,146.49,0.04642769]
[1724114340204,0.05190374,146.52,146.51,2.3881]
[1724114345506,0.05190374,146.52,146.49,0.04642769]
[1724114345711,2.3881,146.51,146.41,29.54076924]
[1724114346006,2.6429,146.52,146.43,26.15]
[1724114346607,2.6429,146.52,146.5,2.3881]
[1724114346801,2.6429,146.52,146.43,29.50939533]
[1724114347003,2.68944811,146.52,146.5,0.04678132]
[1724114347210,5.0302,146.56,146.46,26.15]
[1724114347507,0.04438261,146.52,146.5,0.0490373]
[1724114347811,0.04438261,146.52,146.51,2.3879]
[1724114348207,2.5345,146.58,146.5,26.1990373]
[1724114348808,4.9215,146.58,146.54,2.3875]
[1724114349111,2.5345,146.58,146.5,0.0490373]
[1724114349712,0.04946662,146.57,146.46,26.15]
[1724114350017,0.04946662,146.57,146.53,2.43713026]
[1724114350308,2.5345,146.58,146.46,26.15]
[1724114350714,0.04417949,146.53,146.51,0.0443969]
[1724114350914,28.6845,146.58,146.51,0.0443969]
[1724114351104,0.04788345,146.56,146.51,0.0443969]
[1724114351711,0.04788345,146.56,146.55,2.3874]
[1724114357014,2.43508345,146.56,146.54,0.05176674]
[1724114357222,0.04788345,146.56,146.54,0.05176674]
[1724114357522,0.04788345,146.56,146.54,2.43926674]
[1724114357714,0.04788345,146.56,146.54,0.05176674]
[1724114358112,0.04788345,146.56,146.55,2.3874]
[1724114360125,0.04788345,146.56,146.54,0.05176674]
[1724114360821,0.04788345,146.56,146.52,2.3879]
[1724114361116,26.15,146.57,146.52,2.3879]
[1724114361316,2.3875,146.55,146.51,2.388]
[1724114361518,26.15,146.57,146.45,2.6858]
[1724114361721,2.5495,146.54,146.45,2.6858]
[1724114362024,0.04474224,146.51,146.48,0.04700046]
[1724114362319,0.0506427,146.51,146.48,0.04661548]
[1724114362522,0.0506427,146.51,146.5,2.3882]
[1724114367117,0.0506427,146.51,146.47,26.15]
[1724114367118,2.3871,146.57,146.54,2.3875]
[1724114367621,26.15,146.61,146.51,26.15]
[1724114367824,2.5608,146.62,146.51,26.15]
[1724114368022,0.04409328,146.58,146.55,0.04512572]
[1724114368229,0.04409328,146.58,146.57,2.3871]
[1724114370022,0.04409328,146.58,146.55,0.04512572]
[1724114370627,2.43109328,146.58,146.55,0.04512572]
[1724114370935,0.04409328,146.58,146.55,0.04512572]
[1724114371228,2.67789328,146.58,146.55,0.04512572]
[1724114371633,2.3872,146.57,146.55,0.04512572]
[1724114371940,2.67789328,146.58,146.47,31.494]
[1724114372129,2.67789328,146.58,146.47,26.15]
[1724114372130,26.15,146.56,146.47,26.15]
[1724114372331,2.5083,146.55,146.44,34.0922]
[1724114372637,26.15,146.54,146.44,7.9422]
[1724114372829,28.8607,146.54,146.44,7.9422]
[1724114373031,0.04896455,146.5,146.49,2.3884]
[1724114373225,0.04553669,146.51,146.49,2.3884]
[1724114373428,0.04553669,146.51,146.48,0.04507979]
[1724114373831,0.04553669,146.51,146.5,2.3882]
[1724114374126,0.04553669,146.51,146.48,0.04507979]
[1724114374326,0.04553669,146.51,146.49,2.3883]
[1724114374930,0.04553669,146.51,146.5,2.3882]
[1724114375138,0.04553669,146.51,146.48,0.04507979]
[1724114375637,0.04553669,146.51,146.48,2.43347979]
[1724114376635,0.04553669,146.51,146.49,2.3884]
[1724114376837,0.04553669,146.51,146.48,0.04507979]
[1724114377430,0.04553669,146.51,146.49,2.3883]
[1724114378337,0.04553669,146.51,146.48,2.43357979]
[1724114379032,0.04553669,146.51,146.48,0.04507979]
[1724114379225,2.5532,146.51,146.4,34.1257]
[1724114379437,2.6672,146.5,146.4,34.1257]
[1724114380141,5.0555,146.5,146.46,2.3888]
[1724114380338,0.04493869,146.46,146.44,0.05004716]
[1724114380539,2.3885,146.49,146.45,2.389]
[1724114380845,0.04509026,146.46,146.45,2.389]
[1724114381343,28.8944,146.48,146.44,0.05004716]
[1724114381542,0.04955188,146.47,146.44,0.05004716]
[1724114381940,0.04955188,146.47,146.45,26.15]
[1724114382237,47.27686502,146.7,146.44,0.05004716]
[1724114382238,26.15,146.51,146.44,0.05004716]
[1724114382446,2.3885,146.49,146.45,2.389]
[1724114382637,5.88208528,146.49,146.45,2.389]
[1724114382838,2.3885,146.49,146.45,2.389]
[1724114383143,0.04424625,146.48,146.46,0.0502497]
[1724114383645,0.04424625,146.48,146.38,26.15]
[1724114383840,29.59401433,146.49,146.38,26.15]
[1724114384234,8.0048,146.54,146.4,26.15]
[1724114384438,26.15,146.53,146.47,2.3886]
[1724114384842,0.04585472,146.51,146.47,2.3886]
[1724114385347,26.19585472,146.51,146.46,2.43319681]
[1724114385649,26.19585472,146.51,146.46,0.04439681]
[1724114386346,26.19585472,146.51,146.35,2.5637]
[1724114386540,26.15,146.51,146.39,26.15]
[1724114386734,2.3886,146.48,146.44,2.3891]
[1724114386938,26.15,146.51,146.39,26.15]
[1724114387345,2.3885,146.49,146.45,2.3889]
[1724114387540,0.04636202,146.48,146.45,2.3889]
[1724114388643,2.3885,146.49,146.45,2.3889]
[1724114388944,125.78855008,146.92,146.45,2.3889]
[1724114388945,24.43028368,146.56,146.45,3.3495129]
[1724114389142,2.5429,146.55,146.46,20.96]
[1724114389536,2.5429,146.55,146.45,3.3495129]
[1724114389742,0.05203659,146.51,146.49,0.04529053]
[1724114389948,0.05203659,146.51,146.49,0.04663619]
[1724114391044,0.05203659,146.51,146.49,2.43493619]
[1724114392042,0.05203659,146.51,146.49,0.04663619]
[1724114392845,0.05203659,146.51,146.49,2.43493619]
[1724114393846,0.05203659,146.51,146.5,2.3882]
[1724114395753,2.5429,146.55,146.49,0.04663619]
[1724114395954,26.18,146.59,146.49,26.22663619]
[1724114396247,29.67141114,146.59,146.49,26.18]
[1724114396449,29.67141114,146.59,146.55,2.3873]
[1724114396947,0.04430974,146.58,146.56,0.04905937]
[1724114397146,0.04430974,146.58,146.56,0.04416374]
[1724114398145,44.88646502,146.81,146.56,0.04416374]
[1724114398146,20.44,146.75,146.56,0.04416374]
[1724114398352,2.6499,146.62,146.52,26.18]
[1724114398945,2.6499,146.62,146.59,2.3867]
[1724114399255,2.70051043,146.62,146.59,2.43256552]
[1724114400146,2.70051043,146.62,146.6,2.3866]
[1724114401150,28.88051043,146.62,146.59,0.04586552]
[1724114401352,26.18,146.6,146.5,3.639]
[1724114402342,0.04729346,146.56,146.54,0.04305884]
[1724114403549,0.04729346,146.56,146.55,2.3874]
[1724114403951,0.04729346,146.56,146.54,0.04305884]
[1724114404456,28.9086,146.56,146.46,2.5497]
[1724114404756,34.91912866,146.56,146.52,2.3878]
[1724114405051,5.3312,146.56,146.49,26.18]
[1724114405255,2.7286,146.56,146.49,26.18]
[1724114405754,0.05070045,146.54,146.51,0.04674427]
[1724114405952,0.05070045,146.54,146.53,2.3877]
[1724114407550,0.05070045,146.54,146.52,2.3878]
[1724114408159,26.18,146.65,146.53,26.18]
[1724114408457,2.3866,146.6,146.51,26.18]
[1724114408643,26.18,146.61,146.51,26.18]
[1724114408644,29.54973705,146.61,146.56,2.3871]
[1724114408851,5.3476,146.59,146.56,2.3871]
[1724114409153,5.39885558,146.59,146.56,2.43479417]
[1724114409357,5.39885558,146.59,146.57,2.3871]
[1724114409749,31.57885558,146.59,146.45,26.18]
[1724114409951,5.3476,146.59,146.48,26.18]
[1724114410153,5.3476,146.59,146.5,26.18]
[1724114410355,5.3476,146.59,146.58,2.3869]
[1724114410356,2.6715,146.59,146.58,2.3869]
[1724114410559,2.6143,146.63,146.54,26.18]
[1724114410951,0.05178061,146.6,146.59,2.3867]
[1724114411749,0.05178061,146.6,146.58,2.3869]
[1724114411948,0.05178061,146.6,146.57,0.05091952]
[1724114413054,0.05178061,146.6,146.59,2.3867]
[1724114417261,20.94,146.75,146.57,0.05091952]
[1724114417262,21.44,146.74,146.58,20.94]
[1724114417558,20.94,146.72,146.62,20.94]
[1724114418368,0.0507723,146.68,146.66,0.0452582]
[1724114418963,0.0507723,146.68,146.67,2.3854]
[1724114419161,5.1148,146.73,146.66,20.9852582]
[1724114419350,20.94,146.77,146.66,20.9852582]
[1724114419556,20.94,146.77,146.66,20.94]
[1724114419763,23.324,146.77,146.68,2.3852]
[1724114420061,3.40716984,146.78,146.6,24.34981888]
[1724114420062,0.04694134,146.74,146.71,0.04307009]
[1724114420256,2.3846,146.73,146.64,2.3858]
[1724114420462,2.3846,146.73,146.63,26.15]
[1724114420857,2.3847,146.72,146.65,2.3857]
[1724114421261,0.04595896,146.7,146.67,0.05215348]
[1724114424061,2.43095896,146.7,146.67,0.05215348]
[1724114424458,0.04595896,146.7,146.67,0.05215348]
[1724114424658,2.3852,146.69,146.67,0.05215348]
[1724114425054,0.04595896,146.7,146.67,0.05215348]
[1724114426255,2.43105896,146.7,146.67,0.05215348]
[1724114427065,0.04595896,146.7,146.67,0.05215348]
[1724114427460,0.04595896,146.7,146.67,26.20215348]
[1724114428260,0.04595896,146.7,146.67,0.05215348]
[1724114429263,87.1408,147.0,146.67,0.05215348]
[1724114429264,26.15,146.8,146.69,26.15]
[1724114429468,26.15,146.78,146.66,26.15]
[1724114429660,26.15,146.78,146.66,29.54750845]
[1724114429860,26.15,146.78,146.66,26.15]
[1724114430066,3.39818972,146.77,146.66,26.15]
[1724114430266,0.04663038,146.73,146.71,0.04476842]
[1724114430463,2.3845,146.73,146.64,26.15]
[1724114430767,26.15,146.76,146.64,26.15]
[1724114430965,0.04755232,146.7,146.67,0.04615683]
[1724114431161,26.15,146.76,146.64,26.15]
[1724114431359,0.05147536,146.7,146.67,0.04814175]
[1724114431561,26.15,146.76,146.67,0.04956769]
[1724114431761,2.3846,146.73,146.68,2.3853]
[1724114431960,0.04879559,146.73,146.7,0.04608479]
[1724114432165,0.05003612,146.73,146.7,0.04398298]
[1724114432361,0.05003612,146.73,146.7,2.42888298]
[1724114432566,0.05003612,146.73,146.7,0.04398298]
[1724114434560,2.43453612,146.73,146.7,0.04398298]
[1724114434765,0.05003612,146.73,146.7,0.04398298]
[1724114435563,0.05003612,146.73,146.52,4.7758]
[1724114435862,26.15,146.72,146.59,26.15]
[1724114436065,5.2434,146.71,146.6,3.34107574]
[1724114436263,2.3854,146.68,146.63,2.3859]
[1724114436666,0.04531362,146.67,146.64,0.0463353]
[1724114437076,2.43081362,146.67,146.64,0.0463353]
[1724114437763,2.3858,146.66,146.64,0.0463353]
[1724114438070,0.04531362,146.67,146.55,26.15]
[1724114438071,26.19531362,146.67,146.55,26.15]
[1724114438270,29.55342002,146.67,146.55,29.51185315]
[1724114438473,26.15,146.67,146.55,29.51185315]
[1724114438669,26.15,146.67,146.57,26.15]
[1724114438867,26.15,146.69,146.57,26.15]
[1724114439061,26.15,146.69,146.6,26.15]
[1724114439473,73.66247833,146.89,146.6,26.15]
[1724114439474,73.66247833,146.89,146.66,26.15]
[1724114439767,0.04381708,146.66,146.64,26.15]
[1724114440067,2.3845,146.73,146.67,2.3853]
[1724114440269,2.5635,146.74,146.67,2.3853]